Workbook

Sheet Scenario
C2: Oklahoma Beef Calf Retention Decision Aid 2.0 Oklahoma State University Oklahoma Cooperative Extension Service Oklahoma Agricultural Experiment Station Stillwater, Oklahoma Developed by Eric A. DeVuyst, Kellie Curry Raper, Damona Doye Department of Agricultural Economics David Lalman, Department of Animal Science
H4: Build date | J4: 2010-01-22
B6: NAME | C6: DEMO | G6: A user's manual for this program can be downloaded from:
B7: Date | C7: 2009-08-01 | G7: User's manual download
B9: The current price data is dated as | H9: =data!A20 -> 2010-01-13
B10: Do you want to update price data?
B13: Interest rate | E13: % | F13: 0.065
B16: Choose retention options
B17: After Weaning, calves are retained in: | H17: Preconditioning
B18: =IF(H17="None","",IF(H17="Feedlot","", "After " & H17 & ", calves are retained in:")) -> After Preconditioning, calves are retained in: | H18: Grass pasture
B19: =IF(H18="None","",IF(H18="Feedlot","", "After " & H18 & ", calves are retained in:")) -> After Grass pasture, calves are retained in: | H19: Feedlot
H20: None
H21: None
B23: This program was developed in MS Excel 2007. If previous versions of Excel are used, calculation errors and loss of functionality will occur. Its use in MS Excel 2003 and previous versions is not recommended.
B29: If you received a copy of this program secondhand, it is recommended that you download a new copy from www.okstate.edu/agecon to be sure that you have the most recent updates.
G38: →

Sheet Wean
B2: Calf weaning information
B3: Calf gender | E3: Steers
B4: Weaning date | E4: 2009-10-16
B5: Weight at weaning | E5: 450
B7: Weaning related expenses
B8: Veterinary | H8: $/head | I8: 8
B9: Labor | H9: $/head | I9: 2
B10: Hedging or option expense | H10: $/head | I10: 0
B11: Other weaning expense | H11: $/head | I11: 1
B13: Sale related information expenses
B14: Commission and transport if SOLD | H14: $/head | I14: 5
B15: Beef checkoff | H15: $/head | I15: 1
B16: Hedging and option expense | H16: $/head | I16: 0
B17: Other expense if SOLD | H17: $/head | I17: 0
B18: Total weaning expenses if SOLD | H18: $/head | I18: =SUM(I14:I17)+SUM(I8:I11) -> 17
B19: Percent shrink if SOLD | H19: % | I19: 0.04
B20: Sale weight net of shrink | H20: lb | I20: =E5*(1-I19) -> 432
B21: Sale price | H21: $/cwt | I21: 119.16
B22: Sale revenue | H22: $/head | I22: =I21/100*I20 -> 514.7712
B23: Returns to cow-calf expenses | H23: $/head | I23: =I22-I18 -> 497.7712
B25: Retained calf information and expenses
B26: Transport if RETAINED | H26: $/head | I26: 0
B27: Other expense if RETAINED | H27: $/head | I27: 1
B28: Total weaning expenses if RETAINED | H28: $/head | I28: =SUM(I8:I11)+SUM(I26:I27) -> 12
B29: Percent shrink if RETAINED | H29: % | I29: 0
B30: Transfer weight net of shrink | H30: lb | I30: =E5*(1-I29) -> 450
D37: ← | H37: →

Sheet Preconditioning
B2: Preconditioning information
B5: Death loss during preconditioning | G5: % | I5: 0.01
B6: Date preconditioning starts | I6: =Wean!E4 -> 2009-10-16
B7: Days preconditioning | I7: 45
B8: Date preconditioning ends | I8: =I6+I7 -> 2009-11-30
B9: ADG during preconditioning | G9: lb/day | I9: 2
B10: Starting weight | G10: lb/head | I10: =Wean!I30 -> 450
B11: End weight | G11: lb/head | I11: =I10+I7*I9 -> 540
B13: Expenses during preconditioning
B14: Hay | D14: $/ton | E14: 75 | G14: lb/head/day | I14: 12 | J14: $/head | K14: =E14/2000*I14*I7 -> 20.25
B15: Supplement | D15: $/ton | E15: 200 | G15: lb/head/day | I15: 2 | J15: $/head | K15: =E15/2000*I15*I7 -> 9
B16: Mineral | D16: $/ton | E16: 600 | G16: oz/head/day | I16: 4 | J16: $/head | K16: =E16/2000*I16*I7/128 -> 0.421875
B17: Other feed | D17: $/ton | E17: 200 | G17: lb/head/day | I17: 0 | J17: $/head | K17: =E17/2000*I17*I7 -> 0
B18: Veterinary costs | J18: $/head | K18: 3
B19: Labor | J19: $/head | K19: 0
B20: Equipment and machinery | J20: $/head | K20: 0
B21: Management fee | J21: $/head | K21: 0
B22: Other preconditioning expense (e.g., program fees) | J22: $/head | K22: 0
B23: Yardage | D23: $/hd/day | F23: 0 | G23: Days | I23: =I7 -> 45 | J23: $/head | K23: =F23*I23 -> 0
B24: Interest expense on operating expense | J24: $/head | K24: =(SUM(K14:K23)/2+K36)*Scenario!F13/365*I7 -> 0.2280373074
B25: Opportunity cost of calf during preconditioning | J25: $/head | K25: =Wean!I23*Scenario!F13/365*Preconditioning!I7 -> 3.988988384
B27: Sale related information and expenses
B28: % shrink if SOLD | J28: % | K28: 0.02
B29: Sale weight net of shrink | J29: lb | K29: =I11*(1-K28) -> 529.2
B30: Commission and transport if SOLD | J30: $/head | K30: 5
B31: Beef checkoff | J31: $/head | K31: 1
B32: Hedging and option expense | J32: $/head | K32: 0
B33: Other expense if SOLD | J33: $/head | K33: 1
B34: Preconditioning expense if SOLD* | J34: $/head | K34: =SUM(K14:K25)*(1+I5)+SUM(K30:K33) -> 44.2577897
B35: Preconditioning cost of gain if SOLD* (breakeven sale price) | J35: $/lb | K35: =(data!C48+Preconditioning!K34)/Preconditioning!K29/(1-Preconditioning!I5) -> 1.034588114
B36: Prior production expense | J36: $/head | K36: =data!C46*(1+I5) -> 12.12
B37: Market price if SOLD after preconditioning | J37: $/cwt | K37: 108.4800031
B38: Sale price premium if SOLD after preconditioning | J38: $/cwt | K38: 4
B39: Revenue if SOLD after preconditioning* | J39: $/head | K39: =(K37+K38)/100*K29*(1-I5) -> 589.2917344
B40: Returns to cow-calf expense and retention if SOLD* | J40: $/head | K40: =K39-K34-K36 -> 532.9139447
B42: Additional retention information and expenses
B43: % shrink if RETAINED after preconditioning | K43: 0.01
B44: Transfer weight net of shrink | J44: lb | K44: =I11*(1-K43) -> 534.6
B45: Transport if RETAINED after preconditioning | J45: $/head | K45: 2
B46: Other expense | J46: $/head | K46: 1
B47: Preconditioning expense if RETAINED after preconditioning* | J47: $/head | K47: =SUM(K14:K25)*(1+I5)+SUM(K45:K46) -> 40.2577897
B48: Preconditioning cost of gain if RETAINED after preconditioning* | J48: $/lb | K48: =IF(I11>I10,K47/(I11-I10),"No gain") -> 0.4473087744
B50: *Revenue, returns, expense and cost of gain are computed with "deads in."
B51: With "deads in," the model assumes that all production-related expenses are incurred before death.
D56: ← | I56: →

Sheet Grass1
B2: Grass pasture (1) information
B5: Death loss during grazing | G5: % | I5: 0.01
B6: Date grazing starts | I6: =data!E45 -> 2009-11-30
B7: Days grazing | I7: 45
B8: Date grazing ends | I8: =I6+I7 -> 2010-01-14
B9: ADG during grazing | G9: lb/day | I9: 1.5
B10: Starting weight | G10: lb/head | I10: =data!E47 -> 534.6
B11: End weight | G11: lb/head | I11: =I10+I7*I9 -> 602.1
B13: Expenses during grazing
B14: Hay | D14: $/ton | E14: 80 | G14: lb/head/day | I14: 5 | J14: $/head | K14: =E14/2000*I14*I7 -> 9
B15: Supplement | D15: $/ton | E15: 380 | G15: lb/head/day | I15: 0 | J15: $/head | K15: =E15/2000*I15*I7 -> 0
B16: Mineral | D16: $/ton | E16: 600 | G16: oz/head/day | I16: 4 | J16: $/head | K16: =E16/2000*I16*I7/128 -> 0.421875
B17: Other feed | D17: $/ton | E17: 200 | G17: lb/head/day | I17: 0 | J17: $/head | K17: =E17/2000*I17*I7 -> 0
B18: Veterinary costs | J18: $/head | K18: 2
B19: Labor | J19: $/head | K19: 0.5
B20: Equipment and machinery | J20: $/head | K20: 0
B21: Management fee | J21: $/head | K21: 0
B22: Other grazing expense | J22: $/head | K22: 0
B23: Is pasture owned or leased? | F23: Leased | G23: Stocking rate | I23: 0.25 | J23: head/ac
B24: Terms | D24: $/lb of gain | F24: Rate ($/lb of gain) | I24: 0.4 | J24: $/head | K24: =IF(F23="Leased",IF(D24="$/cwt/month",I24*I10/100*I7/30*I23,IF(D24="$/hd/month",I24*I7/30*I23,I24*(I11-I10))),I24) -> 27
B25: Pasture expenses
B26: Seed | D26: $/acre | F26: 0 | J26: $/head | K26: =F26/$I$23 -> 0
B27: Fertilizer | D27: $/acre | F27: 0 | J27: $/head | K27: =F27/$I$23 -> 0
B28: Weed control | D28: $/acre | F28: 0 | J28: $/head | K28: 0
B29: Interest expense on operating | J29: $/head | K29: =(SUM(K14:K28)/2+K41)*Scenario!F13/365*I7 -> 0.5789201311
B30: Opportunity cost of calf during grazing | J30: $/head | K30: =Scenario!F13/365*I7*data!E48 -> 4.27061139
B32: Sale related information and expenses
B33: % shrink if SOLD | J33: % | K33: 0.03
B34: Sale weight net of shrink | J34: lb | K34: =I11*(1-K33) -> 584.037
B35: Commission and transport if SOLD | J35: $/head | K35: 5
B36: Beef checkoff | J36: $/head | K36: 1
B37: Hedging and option expense | J37: $/head | K37: 0
B38: Other expense if SOLD | J38: $/head | K38: 0
B39: Grass stocker expense if SOLD* | J39: $/head | K39: =SUM(K14:K30)*(1+I5)+SUM(K35:K38) -> 50.20912059
B40: Grass stocker cost of gain if SOLD* (breakeven sale price) | J40: $/lb | K40: =(data!E48+Grass1!K39)/Grass1!K34/(1-Grass1!I5) -> 1.008520269
B41: Prior production expense | J41: $/head | K41: =data!E49*(1+I5) -> 52.780378
B42: Market price if SOLD after grazing | J42: $/cwt | K42: 110.4149969
B43: Sale price premium if SOLD after grazing | J43: $/cwt | K43: 0
B44: Revenue if SOLD after grazing | J44: $/head | K44: =(K42+K43)/100*K34*(1-I5) -> 638.4157914
B45: Returns to cow-calf expense and retention if SOLD | J45: $/head | K45: =K44-K39-K41 -> 535.4262928
B47: Additional retention information and expenses
B48: % shrink if RETAINED after grazing | K48: 0.01
B49: Transfer weight net of shrink | J49: lb | K49: =I11*(1-K48) -> 596.079
B50: Transport if RETAINED after grazing | J50: $/head | K50: 2
B51: Other expense | J51: $/head | K51: 0
B52: Production expense if RETAINED after grazing* | J52: $/head | K52: =SUM(K14:K30)*(1+I5)+SUM(K50:K51) -> 46.20912059
B53: Production cost of gain if RETAINED after grazing* | J53: $/lb | K53: =K52/(I11-I10) -> 0.6845795642
B55: *Revenue, returns, expense and cost of gain are computed with "deads in."
B56: With "deads in," the model assumes that all production-related expenses are incurred before death.
D61: ← | J61: →

Sheet Feedlot
B2: Feedlot information
B5: Death loss during finishing | G5: % | I5: 0.005
B6: Date finishing starts | I6: =data!H45 -> 2010-01-14
B7: Days finishing | I7: 160
B8: Date finishing ends | I8: =I6+I7 -> 2010-06-23
B9: ADG during finishing | G9: lb/day | I9: 3.2
B10: Starting weight | G10: lb/head | I10: =data!H47 -> 596.079
B11: End weight | G11: lb/head | I11: =I10+I7*I9 -> 1108.079
B13: Expenses during finishing
B14: Hay | D14: $/ton | E14: 80 | G14: lb/head/day | I14: 25 | J14: $/head | K14: =E14/2000*I14*I7 -> 160
B15: Supplement | D15: $/ton | E15: 380 | G15: lb/head/day | I15: 7 | J15: $/head | K15: =E15/2000*I15*I7 -> 212.8
B16: Mineral | D16: $/ton | E16: 600 | G16: oz/head/day | I16: 4 | J16: $/head | K16: =E16/2000*I16*I7/128 -> 1.5
B17: Other feed | D17: $/ton | E17: 200 | G17: lb/head/day | I17: 2 | J17: $/head | K17: =E17*I17*I7/2000 -> 32
B18: % dry matter | D18: 0.78 | E18: DM | F18: =ROUND((I14+I15+I17+I16/16)*D18,1) & " lb" -> 26.7 lb | G18: Total as fed | I18: =ROUND(I14+I15+I17+I16/16,1) & " lb" -> 34.3 lb
B19: Feed efficiency | D19: lb feed/ lb gain | F19: DM | G19: =(I11-I10)/((I14+I15+I17+I16/16)*D18) -> 19.16526296 | H19: As fed | I19: =(I11-I10)/(I14+I15+I17+I16/16) -> 14.94890511
B20: Feed cost of gain | E20: $/lb gain | G20: =SUM(K14:K17)/I9/I7 -> 0.7935546875
B21: Veterinary costs | J21: $/head | K21: 4
B22: Labor | J22: $/head | K22: 0
B23: Equipment and machinery | J23: $/head | K23: 0
B24: Management fee | J24: $/head | K24: 0
B25: Other finishing expense | J25: $/head | K25: 0
B26: Yardage | D26: $/hd/day | F26: 0.3 | G26: Days | I26: =I7 -> 160 | J26: $/head | K26: =F26*I26 -> 48
B27: Interest expense on operating | J27: $/head | K27: =(SUM(K14:K26)/2+K39)*Scenario!F13/365*I7 -> 9.34886586
B28: Opportunity cost of calf during finishing | J28: $/head | K28: =data!H48*I7*Scenario!F13/365 -> 15.25598225
B30: Sale related information and expenses
B31: % shrink when SOLD | J31: % | K31: 0.03
B32: Sale weight net of shrink | J32: lb | K32: =I11*(1-K31) -> 1074.83663
B33: Commission and transport when SOLD | J33: $/head | K33: 5
B34: Beef checkoff | J34: $/head | K34: 1
B35: Hedging and option expense | J35: $/head | K35: 0
B36: Other expense when SOLD | J36: $/head
B37: Finishing expense* | J37: $/head | K37: =SUM(K14:K28)*(1+I5)+SUM(K33:K36) -> 491.3193723
B38: Finishing cost of gain* (breakeven sale price) | J38: $/lb | K38: =(K37+data!H48)/Feedlot!K32/(1-Feedlot!I5) -> 0.9600577144
B39: Prior production expense | J39: $/head | K39: =data!H49*(1+I5) -> 98.9592345
B40: Market (base) price | J40: $/cwt | K40: 85.125
B41: Revenue if sold LIVE | J41: $/head | K41: =K40*K32/100*(1-I5) -> 910.3799079
B42: Anticipated dressing percentage | H42: % | I42: 0.625
B43: Plant average base carcass price | J43: $/cwt | K43: 135
B44: Grid pricing
B45: Quality grade | D45: % Std | E45: % Sel | F45: % Ch | G45: %Hg Ch | H45: % Pr
B46: % | D46: 0.01 | E46: 0.15 | F46: 0.65 | G46: 0.15 | H46: 0.04 | I46: Total | J46: =SUM(D46:H46) -> 1
B47: Premium (disc) | D47: -12 | E47: -6 | F47: 0 | G47: 6 | H47: 9 | I47: Wtd avg | J47: $/cwt | K47: =SUMPRODUCT(D46:H46,D47:H47) -> 0.24
B48: Yield Grade | D48: % YG1 | E48: % YG2 | F48: % YG3 | G48: % YG4 | H48: % YG5
B49: % | D49: 0.05 | E49: 0.18 | F49: 0.72 | G49: 0.04 | H49: 0.01 | I49: Total | J49: =SUM(D49:H49) -> 1
B50: Premium (disc) | D50: 5 | E50: 2 | F50: 0 | G50: -8 | H50: -20 | I50: Wtd avg | J50: $/cwt | K50: =SUMPRODUCT(D49:H49,D50:H50) -> 0.09
B51: Program premium (e.g., CAB) $/cwt | F51: 3 | G51: % qualifying | I51: 0.6 | J51: $/cwt | K51: =F51*I51 -> 1.8
B52: Revenue if sold on GRID | J52: $/head | K52: =SUM(K43:K51)*K32/100*(1-I5)*I42 -> 916.5961584
B53: Returns to cow-calf expense and retention if sold LIVE | J53: $/head | K53: =K41-K39-K37 -> 320.101301
B54: Returns to cow-calf expense and retention if sold on GRID | J54: $/head | K54: =K52-K39-K37 -> 326.3175515
B55: MAXIMUM of Returns to cow-calf expense and retention | J55: $/head | K55: =MAX(K53:K54) -> 326.3175515
B57: *Revenue, returns, expense and cost of gain are computed with "deads in."
B58: With "deads in," the model assumes that all production-related expenses are incurred before death.
E64: ← | J64: →

Sheet Drylot-Backgrounding (hidden)
B2: Drylot/Backgrounding information
B5: Death loss during backgrounding | G5: % | I5: 0.01
B6: Date backgrounding starts | I6: =data!G45 -> 2009-11-30
B7: Days backgrounding | I7: 30
B8: Date backgrounding ends | I8: =I6+I7 -> 2009-12-30
B9: ADG during backgrounding | G9: lb/day | I9: 2.5
B10: Starting weight | G10: lb/head | I10: =data!G47 -> 524.79
B11: End weight | G11: lb/head | I11: =I10+I7*I9 -> 599.79
B13: Expenses during backgrounding
B14: Hay | D14: $/ton | E14: 80 | G14: lb/head/day | I14: 10 | J14: $/head | K14: =E14/2000*I14*I7 -> 12
B15: Supplement | D15: $/ton | E15: 380 | G15: lb/head/day | I15: 1 | J15: $/head | K15: =E15/2000*I15*I7 -> 5.7
B16: Mineral | D16: $/ton | E16: 600 | G16: oz/head/day | I16: 4 | J16: $/head | K16: =E16/2000*I16*I7/128 -> 0.28125
B17: Other feed | D17: $/ton | E17: 200 | G17: lb/head/day | I17: 6 | J17: $/head | K17: =E17/2000*I17*I7 -> 18
B18: Veterinary costs | J18: $/head | K18: 2
B19: Labor | J19: $/head | K19: 1
B20: Equipment and machinery | J20: $/head | K20: 2
B21: Management fee | J21: $/head | K21: 0
B22: Other backgrounding expense | J22: $/head | K22: 0
B23: Yardage | D23: $/hd/day | F23: 0.2 | G23: Days | I23: =I7 -> 30 | J23: $/head | K23: =F23*I23 -> 6
B24: Interest expense on operating | J24: $/head | K24: =(SUM(K14:K23)/2+K36)*Scenario!F13/365*I7 -> 0.1254978596
B25: Opportunity cost of calf during backgrounding | J25: $/head | K25: =data!G48*Scenario!F13/365*'Drylot-Backgrounding'!I7 -> 2.760919521
B27: Sale related information and expenses
B28: % shrink if SOLD | J28: % | K28: 0.03
B29: Sale weight net of shrink | J29: lb | K29: =I11*(1-K28) -> 581.7963
B30: Commission and transport if SOLD | J30: $/head | K30: 2
B31: Beef checkoff | J31: $/head | K31: 1
B32: Hedging and option expense | J32: $/head | K32: 0
B33: Other expense if SOLD | J33: $/head | K33: 5
B34: Backgrounding expense if SOLD* | J34: $/head | K34: =SUM(K14:K25)*(1+I5)+SUM(K30:K33) -> 58.36634405
B35: Backgrounding cost of gain if SOLD* (breakeven sale price) | J35: $/lb | K35: =(K34+data!G48)/'Drylot-Backgrounding'!K29/(1-'Drylot-Backgrounding'!I5) -> 0.9985685348
B36: Prior production expense | J36: $/head | K36: =data!G49*(1+I5) -> 0
B37: Market price if SOLD after backgrounding | J37: $/cwt | K37: 112.6500015
B38: Sale price premium if SOLD after backgrounding | J38: $/cwt | K38: 4
B39: Revenue if SOLD after backgrounding | J39: $/head | K39: =(K37+K38)/100*K29*(1-I5) -> 671.8787389
B40: Returns to cow-calf expense and retention if SOLD | J40: $/head | K40: =K39-K34-K36 -> 613.5123948
B42: Additional retention information and expenses
B43: % shrink if RETAINED after backgrounding | K43: 0.02
B44: Transfer weight net of shrink | J44: lb | K44: =I11*(1-K43) -> 587.7942
B45: Transport if RETAINED after backgrounding | J45: $/head | K45: 1
B46: Other expense | J46: $/head | K46: 0
B47: Production expense if RETAINED after backgrounding* | J47: $/head | K47: =SUM(K14:K25)*(1+I5)+SUM(K45:K46) -> 51.36634405
B48: Production cost of gain if RETAINED after backgrounding* | J48: $/lb | K48: =K47/(I11-I10) -> 0.6848845874
B50: *Revenue, returns, expense and cost of gain are computed with "deads in."
B51: With "deads in," the model assumes that all production-related expenses are incurred before death.
D57: ← | J57: →

Sheet Grass2 (hidden)
B2: Grass pasture (2) information
B5: Death loss during grazing | G5: % | I5: 0.01
B6: Date grazing starts | I6: =data!F45 -> 2009-11-30
B7: Days grazing | I7: 20
B8: Date grazing ends | I8: =I6+I7 -> 2009-12-20
B9: ADG during grazing | G9: lb/day | I9: 2.5
B10: Starting weight | G10: lb/head | I10: =data!F47 -> 512.325
B11: End weight | G11: lb/head | I11: =I10+I7*I9 -> 562.325
B13: Expenses during grazing
B14: Hay | D14: $/ton | E14: 80 | G14: lb/head/day | I14: 0 | J14: $/head | K14: =E14/2000*I14*I7 -> 0
B15: Supplement | D15: $/ton | E15: 380 | G15: lb/head/day | I15: 0 | J15: $/head | K15: =E15/2000*I15*I7 -> 0
B16: Mineral | D16: $/ton | E16: 600 | G16: oz/head/day | I16: 0 | J16: $/head | K16: =E16/2000*I16*I7/128 -> 0
B17: Other feed | D17: $/ton | E17: 200 | G17: lb/head/day | I17: 0 | J17: $/head | K17: =E17/2000*I17*I7 -> 0
B18: Veterinary costs | J18: $/head | K18: 7
B19: Labor | J19: $/head | K19: 1
B20: Equipment and machinery | J20: $/head | K20: 2
B21: Management fee | J21: $/head | K21: 0
B22: Other grazing expense | J22: $/head | K22: 0
B23: Is pasture owned or leased? | F23: Leased | G23: Stocking rate | I23: 0.6 | J23: head/ac
B24: Terms | D24: $/lb of gain | F24: Rate ($/lb of gain) | I24: 0.35 | J24: $/head | K24: =IF(F23="Leased",IF(D24="$/cwt/month",I24*I10/100*I7/30*I23,IF(D24="$/hd/month",I24*I7/30*I23,I24*(I11-I10))),I24) -> 17.5
B25: Pasture expenses
B26: Seed | D26: $/acre | F26: 5 | J26: $/head | K26: =F26/$I$23 -> 8.333333333
B27: Fertilizer | D27: $/acre | F27: 5 | J27: $/head | K27: =F27/$I$23 -> 8.333333333
B28: Weed control | D28: $/acre | F28: 5 | J28: $/head | K28: 8.333333333
B29: Interest expense on operating | J29: $/head | K29: =(SUM(K14:K28)/2+K41)*Scenario!F13/365*I7 -> 0.09349315068
B30: Opportunity cost of calf during grazing | J30: $/head | K30: =Scenario!F13/365*I7*data!F48 -> 1.636996685
B32: Sale related information and expenses
B33: % shrink if SOLD | J33: % | K33: 0.01
B34: Sale weight net of shrink | J34: lb | K34: =I11*(1-K33) -> 556.70175
B35: Commission and transport if SOLD | J35: $/head | K35: 1
B36: Beef checkoff | J36: $/head | K36: 2
B37: Hedging and option expense | J37: $/head | K37: 2
B38: Other expense if SOLD | J38: $/head | K38: 5
B39: Grazing expense if SOLD* | J39: $/head | K39: =SUM(K14:K30)*(1+I5)+SUM(K35:K38) -> 64.77279473
B40: Grazing cost of gain if SOLD* (breakeven sale price) | J40: $/lb | K40: =(K39+data!F48)/Grass2!K34/(1-Grass2!I5) -> 0.9514753178
B41: Prior production expense | J41: $/head | K41: =data!F49*(1+I5) -> 0
B42: Market price if SOLD after grazing | J42: $/cwt | K42: 78.43000305
B43: Sale price premium if SOLD after grazing | J43: $/cwt | K43: 3
B44: Revenue if SOLD after grazing | J44: $/head | K44: =(K42+K43)/100*K34*(1-I5) -> 448.7890295
B45: Returns to cow-calf expense and retention if SOLD | J45: $/head | K45: =K44-K39-K41 -> 384.0162348
B47: Additional retention information and expenses
B48: % shrink if RETAINED after grazing | K48: 0.04
B49: Transfer weight net of shrink | J49: lb | K49: =I11*(1-K48) -> 539.832
B50: Transport if RETAINED after grazing | J50: $/head | K50: 1
B51: Other expense | J51: $/head | K51: 1
B52: Production expense if RETAINED after grazing* | J52: $/head | K52: =SUM(K14:K30)*(1+I5)+SUM(K50:K51) -> 56.77279473
B53: Production cost of gain if RETAINED after grazing* | J53: $/lb | K53: =K52/(I11-I10) -> 1.135455895
B55: *Revenue, returns, expense and cost of gain are computed with "deads in."
B56: With "deads in," the model assumes that all production-related expenses are incurred before death.
D61: ← | I61: →

Sheet Wheat (hidden)
B2: Wheat pasture information
B5: Death loss during grazing | G5: % | I5: 0.01
B6: Date grazing starts | I6: =data!D45 -> 2009-12-20
B7: Days grazing | I7: 50
B8: Date grazing ends | I8: =I6+I7 -> 2010-02-08
B9: ADG during grazing | G9: lb/day | I9: 3.2
B10: Starting weight | G10: lb/head | I10: =data!D47 -> 539.832
B11: End weight | G11: lb/head | I11: =I10+I7*I9 -> 699.832
B13: Expenses during grazing
B14: Hay | D14: $/ton | E14: 80 | G14: lb/head/day | I14: 0 | J14: $/head | K14: =E14/2000*I14*I7 -> 0
B15: Supplement | D15: $/ton | E15: 380 | G15: lb/head/day | I15: 2 | J15: $/head | K15: =E15/2000*I15*I7 -> 19
B16: Mineral | D16: $/ton | E16: 600 | G16: oz/head/day | I16: 4 | J16: $/head | K16: =E16/2000*I16*I7/128 -> 0.46875
B17: Other feed | D17: $/ton | E17: 200 | G17: lb/head/day | I17: 0 | J17: $/head | K17: =E17/2000*I17*I7 -> 0
B18: Veterinary costs | J18: $/head | K18: 3
B19: Labor | J19: $/head | K19: 0.5
B20: Equipment and machinery | J20: $/head | K20: 0
B21: Management fee | J21: $/head | K21: 0
B22: Other grazing expense | J22: $/head | K22: 0
B23: Is pasture owned or leased? | F23: Leased | G23: Stocking rate | I23: 0.5 | J23: head/ac
B24: Terms | D24: $/lb of gain | F24: Rate ($/lb of gain) | I24: 0.4 | J24: $/head | K24: =IF(F23="Leased",IF(D24="$/cwt/month",I24*I10/100*I7/30*I23,IF(D24="$/hd/month",I24*I7/30*I23,I24*(I11-I10))),I24) -> 64
B25: Pasture expenses
B26: Seed | D26: $/acre | F26: 0 | J26: $/head | K26: =F26/$I$23 -> 0
B27: Fertilizer | D27: $/acre | F27: 0 | J27: $/head | K27: =F27/$I$23 -> 0
B28: Weed control | D28: $/acre | F28: 0 | J28: $/head | K28: 0
B29: Reduced yield | D29: bu/acre | E29: 0 | F29: Wheat price | H29: $/bu | I29: 0 | J29: $/head | K29: =IF(F23="Owned",E29*I29/I23,0) -> 0
B30: Interest expense on operating | J30: $/head | K30: =(SUM(K14:K29)/2+K42)*Scenario!F13/365*I7 -> 0.3871896404
B31: Opportunity cost of calf during grazing | J31: $/head | K31: =I7*data!D48*Scenario!F13/365 -> 3.015752466
B33: Sale related information and expenses
B34: % shrink if SOLD | J34: % | K34: 0.03
B35: Sale weight net of shrink | J35: lb | K35: =I11*(1-K34) -> 678.83704
B36: Commission and transport if SOLD | J36: $/head | K36: 5
B37: Beef checkoff | J37: $/head | K37: 1
B38: Hedging and option expense | J38: $/head | K38: 0
B39: Other expense if SOLD | J39: $/head
B40: Wheat stocker expense if SOLD* | J40: $/head | K40: =SUM(K14:K31)*(1+I5)+SUM(K36:K39) -> 97.27540903
B41: Wheat stocker cost of gain if SOLD* (breakeven sale price) | J41: $/lb | K41: =(K40+data!D48)/Wheat!K35/(1-Wheat!I5) -> 0.6487143398
B42: Prior production expense | J42: $/head | K42: =data!D49*(1+I5) -> 0
B43: Market price if SOLD after grazing | J43: $/cwt | K43: 97.58999847
B44: Sale price premium if SOLD after grazing | J44: $/cwt
B45: Revenue if SOLD after grazing | J45: $/head | K45: =(K43+K44)/100*K35*(1-I5) -> 655.8522864
B46: Returns to cow-calf expense and retention if SOLD | J46: $/head | K46: =K45-K40-K42 -> 558.5768774
B48: Additional retention information and expenses
B49: % shrink if RETAINED after grazing | K49: 0.03
B50: Transfer weight net of shrink | J50: lb | K50: =I11*(1-K49) -> 678.83704
B51: Transport if RETAINED after grazing | J51: $/head | K51: 3
B52: Other expense | J52: $/head | K52: 0
B53: Production expense if RETAINED after grazing* | J53: $/head | K53: =SUM(K14:K31)*(1+I5)+SUM(K51:K52) -> 94.27540903
B54: Production cost of gain if RETAINED after grazing* | J54: $/lb | K54: =K53/(I11-I10) -> 0.5892213064
B56: *Revenue, returns, expense and cost of gain are computed with "deads in."
B57: With "deads in," the model assumes that all production-related expenses are incurred before death.
D62: ← | I62: →

Sheet Results
B2: Results ($/head)
B4: Sale after: | E4: Weaning | F4: =Scenario!H17 -> Preconditioning | G4: =IF(Scenario!H18<>"None",Scenario!H18,"") -> Grass pasture | H4: =IF(Scenario!H19<>"None",Scenario!H19,"") -> Feedlot | I4: =IF(Scenario!H20<>"None",Scenario!H20,"") ->  | J4: =IF(Scenario!H21<>"None",Scenario!H21,"") -> 
B5: Sale weight net of shrink | E5: =Wean!I20 -> 432 | F5: 529.2 | G5: 584.037 | H5: 1074.83663
B6: Market price ($/cwt) | E6: =Wean!I21 -> 119.16 | F6: 108.48 | G6: 110.415 | H6: 135
B7: Premium ($/cwt) | E7: ="--" -> -- | F7: 4 | G7: 0 | H7: 2.13
B8: Death loss (%) | E8: =E7 -> -- | F8: 0.01 | G8: 0.01 | H8: 0.005
B9: Revenue ($/hd) | E9: =E6/100*E5 -> 514.7712 | F9: 589.2917 | G9: 638.4158 | H9: 916.6
B10: Feed expense | E10: -- | F10: 40.02 | G10: 9.42 | H10: 406.3
B11: Prior expense | E11: -- | F11: 12.12 | G11: 63.380732 | H11: 137.024112
B12: Pasture rent/yardage | F12: 0 | G12: 54 | H12: 48
B13: Other expense | F13: =IF(F4<>"",F15-SUM(F10:F12)-F14,"") -> 10.47 | G13: =IF(G4<>"",G15-SUM(G10:G12)-G14,"") -> 9.209268 | H13: 12.415888
B14: Interest expense + opportunity cost | F14: 4.26 | G14: 4.96 | H14: 24.61
B15: Total expense | E15: =Wean!I18 -> 17 | F15: 66.87 | G15: 140.97 | H15: 628.35
B16: Returns to cow-calf + prior retention | E16: =E9-E15 -> 497.7712 | F16: =IF(F5<>"",F9-F15,"") -> 522.4217 | G16: =IF(G5<>"",G9-G15,"") -> 497.4458 | H16: 288.25
B17: Returns to retention | E17: -- | F17: =IF(F4<>"",F16-E16,"") -> 24.6505 | G17: =IF(G4<>"",G16-F16,"") -> -24.9759 | H17: -209.1958
B19: Sensitivity analysis--feeder calf sale price
B20: Percent change in calf sale price | E20: ="+/-" -> +/- | F20: -0.15
E21: Weaning | F21: =IF(F4<>"",F4,"") -> Preconditioning | G21: =IF(G4<>"",G4,"") -> Grass pasture | H21: Feedlot
B22: Days | E22: ="--" -> -- | F22: 45 | G22: 45 | H22: 160
B23: Sale weight net of shrink | E23: =$E$5 -> 432 | F23: =F5 -> 529.2 | G23: =IF(G21<>"",G5,"") -> 584.037 | H23: =IF(H21<>"",H5,"") -> 1074.83663
B24: Market price ($/cwt) | E24: =$E$6*(1+$F$20) -> 101.286 | F24: =IF(F21<>"Feedlot",IF(F4<>"",F6*(1+G20)*(1+$F$20),""),IF(F4<>"",F6*(1+G20),"")) -> 92.208 | G24: =IF(G21<>"Feedlot",IF(G4<>"",G6*(1+H20)*(1+$F$20),""),IF(G4<>"",G6*(1+H20),"")) -> 93.85275 | H24: =IF(H21<>"Feedlot",IF(H4<>"",H6*(1+I20)*(1+$F$20),""),IF(H4<>"",H6*(1+I20),"")) -> 135 | I24: =IF(I21<>"Feedlot",IF(I4<>"",I6*(1+J20)*(1+$F$20),""),IF(I4<>"",I6*(1+J20),"")) ->  | J24: =IF(J21<>"Feedlot",IF(J4<>"",J6*(1+K20)*(1+$F$20),""),IF(J4<>"",J6*(1+K20),"")) -> 
B25: Premium ($/cwt) | E25: ="--" -> -- | F25: =IF(F4<>"",F7,"") -> 4 | G25: =IF(G4<>"",G7,"") -> 0 | H25: 2.13
B26: Death loss (%) | E26: =E25 -> -- | F26: =IF(F4<>"",F8,"") -> 0.01 | G26: =IF(G4<>"",G8,"") -> 0.01 | H26: 0.005
B27: Revenue ($/hd) | E27: =E24/100*E23 -> 437.55552 | F27: =IF(F21<>"Feedlot",IF(F21<>"",F23*(F24+F25)/100*(1-F26),""),IF(F21<>"",F9,"")) -> 504.0414086 | G27: 542.6534377 | H27: 916.6 | J27: =IF(J21<>"Feedlot",IF(J21<>"",J23*(J24+J25)/100*(1-J26),""),IF(J21<>"",J9,"")) -> 
B28: Feed expense | F28: =IF(F$4<>"",F10,"") -> 40.02 | G28: =IF(G$4<>"",G10,"") -> 9.42 | H28: =IF(H$4<>"",H10,"") -> 406.3 | I28: =IF(I$4<>"",I10,"") ->  | J28: =IF(J$4<>"",J10,"") -> 
B29: Prior expense | F29: =IF(F21<>"",IF($F$21<>"",F11,""),"") -> 12.12 | G29: =IF(G21<>"",IF($F$21<>"",G11,""),"") -> 63.380732 | H29: 137.024112
B30: Pasture rent/yardage | F30: =IF(F$21<>"",F12,"") -> 0 | G30: =IF(G$21<>"",G12,"") -> 54 | H30: 48
B31: Other expense | F31: =IF($F$21<>"",F13,"") -> 10.47 | G31: =IF($F$21<>"",G13,"") -> 9.209268 | H31: 12.415888
B32: Returns to cow-calf + prior retention | F32: =IF(F21<>"",F14+(E34-E16)*F22*Scenario!$F$13/365,"") -> 3.641216811 | G32: =IF(G21<>"",G14+(F34-F16)*G22*Scenario!$F$13/365,"") -> 4.281788599 | H32: =IF(H21<>"",H14+(G34-G16)*H22*Scenario!$F$13/365,"") -> 21.90075296 | I32: =IF(I21<>"",I14+(H34-H16)*I22*Scenario!$F$13/365,"") ->  | J32: =IF(J21<>"",J14+(I34-I16)*J22*Scenario!$F$13/365,"") -> 
B33: Total expense | E33: =E15 -> 17 | F33: =IF(F21<>"",SUM(F28:F32),"") -> 66.25121681 | G33: =IF(G21<>"",SUM(G28:G32),"") -> 140.2917886 | H33: 625.640753
B34: Net return | E34: =E27-E33 -> 420.55552 | F34: =IF(F21<>"",F27-F33,"") -> 437.7901918 | G34: =IF(G21<>"",G27-G33,"") -> 402.3616491 | H34: =IF(H21<>"",H27-H33,"") -> 290.959247 | I34: =IF(I21<>"",I27-I33,"") ->  | J34: =IF(J21<>"",J27-J33,"") -> 
B35: Returns to retention | E35: -- | F35: =IF(F21<>"",F34-E34,"") -> 17.23467183 | G35: =IF(G21<>"",G34-F34,"") -> -35.42854277 | H35: -111.402402
B37: Sensitivity analysis--feed expense
B38: Percent change in feed expense | E38: ="+/-" -> +/- | F38: 0.1
E39: Weaning | F39: =F4 -> Preconditioning | G39: =G4 -> Grass pasture | H39: Feedlot
B40: Days | E40: ="--" -> -- | F40: 15
B41: Sale weight net of shrink | E41: =E5 -> 432 | F41: =F23 -> 529.2 | G41: =G23 -> 584.037 | H41: =H23 -> 1074.83663 | I41: =I23 ->  | J41: =J23 -> 
B42: Market price ($/cwt) | E42: =IF(E39<>"",E6,"") -> 119.16 | F42: =IF(F39<>"",F6,"") -> 108.48 | G42: 110.415 | H42: 135
B43: Premium ($/cwt) | E43: ="--" -> -- | F43: =IF(F40<>"",F7,"") -> 4 | G43: =IF(G22<>"",G25,"") -> 0 | H43: 2.13
B44: Death loss (%) | E44: =E43 -> -- | F44: =IF(F41<>"",F8,"") -> 0.01 | G44: =IF(G22<>"",G26,"") -> 0.01 | H44: 0.005
B45: Revenue ($/hd) | E45: =E42/100*E41 -> 514.7712 | F45: =IF(F39<>"Feedlot",IF(F39<>"",F41*(F42+F43)/100*(1-F44),""),IF(F39<>"",F9,"")) -> 589.2917184 | G45: 638.415809 | H45: 916.6 | J45: =IF(J39<>"Feedlot",IF(J39<>"",J41*(J42+J43)/100*(1-J44),""),IF(J39<>"",J9,"")) -> 
B46: Feed expense | F46: =IF(F43<>"",F10*(1+$F$38),"") -> 44.022 | G46: =IF(G43<>"",G10*(1+$F$38),"") -> 10.362 | H46: 446.93
B47: Prior expense | F47: =IF(F44<>"",F11,"") -> 12.12 | G47: =IF(G44<>"",G11-F10+F46-F14+F50,"") -> 67.38308834 | H47: =IF(H44<>"",H11-G10+G46-G14+G50,"") -> 137.966112
B48: Pasture rent/yardage | F48: =IF(F45<>"",F12,"") -> 0 | G48: 54 | H48: 48
B49: Other expense | F49: =IF(F46<>"",F13,"") -> 10.47 | G49: 9.209268 | H49: 12.415888
B50: Interest expense + opportunity cost | F50: =IF(F47<>"",F14+(F46-F10)/2*Scenario!$F$13/365,"") -> 4.260356342 | G50: =IF(G47<>"",G14,"") -> 4.96 | H50: 24.61
B51: Total expense | E51: =E33 -> 17 | F51: =IF(F39<>"",SUM(F46:F50),"") -> 70.87235634 | G51: =IF(G39<>"",SUM(G46:G50),"") -> 145.9143563 | H51: 669.922
B52: Returns to cow-calf + prior retention | E52: =E45-E51 -> 497.7712 | F52: =IF(F39<>"",F45-F51,"") -> 518.4193621 | G52: =IF(G39<>"",G45-G51,"") -> 492.5014527 | H52: 246.678
B53: Returns to retention | E53: -- | F53: =IF(F39<>"",F52-E52,"") -> 20.64816206 | G53: =IF(G39<>"",G52-F52,"") -> -25.91790939 | H53: =IF(H39<>"",H52-G52,"") -> -245.8234527 | I53: =IF(I39<>"",I52-H52,"") ->  | J53: =IF(J39<>"",J52-I52,"") -> 
B55: Sensitivity analysis--death loss
E56: Weaning | F56: =F4 -> Preconditioning | G56: =G4 -> Grass pasture | H56: Feedlot
B57: Death loss | F57: 0.03 | G57: 0.01 | H57: 0.02
B58: Days | E58: ="--" -> -- | F58: =IF(F56<>"",F22,"") -> 45 | G58: =IF(G56<>"",G22,"") -> 45 | H58: 160
B59: Sale weight net of shrink | E59: =E23 -> 432 | F59: =F23 -> 529.2 | G59: 584.037 | H59: 1074.83663
B60: Market price ($/cwt) | E60: =E6 -> 119.16 | F60: =IF(F$56<>"",F6,"") -> 108.48 | G60: =IF(G$56<>"",G6,"") -> 110.415 | H60: 135
B61: Premium ($/cwt) | E61: =E25 -> -- | F61: =IF(F$56<>"",F7,"") -> 4 | G61: =IF(G$56<>"",G7,"") -> 0 | H61: 2.13
B62: Revenue ($/hd) | E62: =E60/100*E59 -> 514.7712 | F62: =IF(F56<>"",F9/(1-F8)*(1-F57),"") -> 577.3868172 | G62: =IF(G56<>"",G9/(1-G8)*(1-G57),"") -> 638.4158 | H62: 902.7819095
B63: Feed expense | F63: =IF(F$56<>"",F10*(1+F$57)/(1+F$8),"") -> 40.81247525 | G63: =IF(G$56<>"",G10*(1+G$57)/(1+G$8),"") -> 9.42 | H63: 412.3641791
B64: Prior expense | F64: =IF(F$56<>"",F11*(1+F$57)/(1+F$8),"") -> 12.36 | G64: 63.380732 | H64: 139.069248
B65: Pasture rent/yardage | F65: 0 | G65: 54 | H65: 48.71641791
B66: Other expense | F66: 10.67732673 | G66: 9.209268 | H66: 12.60119976
B67: Interest expense + opportunity cost | F67: =IF(F56<>"",(F72/2+E69+F64)*Scenario!$F$13/365*F58*(1+F57)/(1+F8),"") -> 4.344784721 | G67: =IF(G56<>"",(G72/2+G64+F69)*Scenario!$F$13/365*G58*(1+G57)/(1+G8),"") -> 4.852566285 | H67: =IF(H56<>"",(H72/2+G69+H64)*Scenario!$F$13/365*H58*(1+H57)/(1+H8),"") -> 25.03677363 | I67: =IF(I56<>"",(I72/2+H69+I64)*Scenario!$F$13/365*I58*(1+I57)/(1+I8),"") ->  | J67: =IF(J56<>"",(J72/2+I69+J64)*Scenario!$F$13/365*J58*(1+J57)/(1+J8),"") -> 
B68: Total expense | E68: =E51 -> 17 | F68: =IF(F56<>"",SUM(F63:F67),"") -> 68.1945867 | G68: =IF(G56<>"",SUM(G63:G67),"") -> 140.8625663 | H68: 637.7878184
B69: Returns to cow-calf + prior retention | E69: =E62-E68 -> 497.7712 | F69: =IF(F56<>"",F62-F68,"") -> 509.1922305 | G69: =IF(G56<>"",G62-G68,"") -> 497.5532337 | H69: 264.9940911
B70: Returns to retention | E70: -- | F70: =IF(F56<>"",F69-E69,"") -> 11.42103047 | G70: =IF(G56<>"",G69-F69,"") -> -11.63899676 | H70: -232.5591426
D72: presale expense | F72: 43.0219 | G72: 65.9219 | H72: 458.3 | I72: 458.3 | J72: 377.8188
D76: ← | H76: →

Sheet data (hidden)
A1: Steer basis
A2: 2003-07 Avg | B2: low | C2: high | D2: Jan | E2: Feb | F2: Mar | G2: Apr | H2: May | I2: Jun | J2: Jul | K2: Aug | L2: Sep | M2: Oct | N2: Nov | O2: Dec
A3: 400-500 | B3: 400 | C3: 499.99 | D3: 28.27 | E3: 33.84 | F3: 35.44 | G3: 33.5 | H3: 28.02 | I3: 26.88 | J3: 24.77 | K3: 21.07 | L3: 19 | M3: 20.16 | N3: 26.03 | O3: 29.42
A4: 500-600 | B4: 500 | C4: 599.99 | D4: 15.34 | E4: 22.54 | F4: 24.17 | G4: 22.66 | H4: 19.65 | I4: 16.57 | J4: 15.01 | K4: 12.54 | L4: 9.6 | M4: 7.26 | N4: 13.68 | O4: 15.5
A5: 600-700 | B5: 600 | C5: 699.99 | D5: 4.71 | E5: 9.83 | F5: 13.29 | G5: 13.27 | H5: 11.48 | I5: 9.69 | J5: 8.43 | K5: 7.74 | L5: 7.19 | M5: 4.68 | N5: 5.97 | O5: 6.79
A6: 700-800 | B6: 700 | C6: 799.99 | D6: 0.34 | E6: 2.47 | F6: 1.99 | G6: 2.96 | H6: 2.49 | I6: 3.44 | J6: 2.66 | K6: 2.38 | L6: 1.72 | M6: 1.4 | N6: 3.54 | O6: 4.02
A8: heifer basis
A9: 2003-07 Avg | B9: low | C9: high | D9: Jan | E9: Feb | F9: Mar | G9: Apr | H9: May | I9: Jun | J9: Jul | K9: Aug | L9: Sep | M9: Oct | N9: Nov | O9: Dec
A10: 400-500 | B10: 400 | C10: 499.99 | D10: 13.46 | E10: 19.68 | F10: 20.62 | G10: 18.6 | H10: 17.16 | I10: 12.27 | J10: 9.84 | K10: 7.81 | L10: 5.14 | M10: 4.97 | N10: 9.06 | O10: 12.77
A11: 500-600 | B11: 500 | C11: 599.99 | D11: 3.45 | E11: 8.91 | F11: 11.92 | G11: 10.32 | H11: 8.87 | I11: 7.49 | J11: 4.82 | K11: 3.35 | L11: 0.81 | M11: -1.53 | N11: -0.45 | O11: 4.23
A12: 600-700 | B12: 600 | C12: 699.99 | D12: -1.27 | E12: 1.18 | F12: 2.28 | G12: 2.34 | H12: 2.47 | I12: 1.66 | J12: -0.23 | K12: -0.58 | L12: -2 | M12: -2.23 | N12: -2.26 | O12: -0.81
A13: 700-800 | B13: 700 | C13: 799.99 | D13: -4.27 | E13: -3.22 | F13: -5.51 | G13: -5.88 | H13: -5.78 | I13: -3.9 | J13: -4.69 | K13: -5.78 | L13: -5.39 | M13: -6.5 | N13: -4.31 | O13: -3.35
A16: Feeder futures
A17: Steer basis | C17: DAILY
C18: JAN | D18: MAR | E18: APR | F18: MAY | G18: AUG | H18: SEP | I18: OCT | J18: NOV | K18: Nearby
C19: 1 | D19: 3 | E19: 4 | F19: 5 | G19: 8 | H19: 9 | I19: 10 | J19: 11
A20: 2010-01-13 | C20: 97.30000305 | D20: 97.57499695 | E20: 98.75 | F20: 99.375 | G20: 100.5 | H20: 100.6999969 | I20: 99.90000153 | J20: 100.3000031 | K20: 97.57499695
A23: Fed cattle futures
B24: JAN | C24: FEB | D24: MAR | E24: APR | F24: MAY | G24: JUN | H24: JUL | I24: AUG | J24: SEP | K24: OCT | L24: NOV | M24: DEC | N24: Nearby
B25: 1 | C25: 2 | D25: 3 | E25: 4 | F25: 5 | G25: 6 | H25: 7 | I25: 8 | J25: 9 | K25: 10 | L25: 11 | M25: 12
A26: 2010-01-13 | C26: 85.69999695 | E26: 89.69999695 | G26: 87.44999695 | I26: 87.375 | K26: 89.94999695 | M26: 90.65000153 | N26: 85.69999695
A32: download
B34: wean | C34: precond | D34: wheat | E34: grass1 | F34: grass2 | G34: drylot | H34: feedlot
A35: market price | B35: =Wean!I21 -> 119.16 | C35: =Preconditioning!K37 -> 108.4800031 | D35: =Wheat!K43 -> 97.58999847 | E35: =Grass1!K42 -> 110.4149969 | F35: =Grass2!K42 -> 78.43000305 | G35: ='Drylot-Backgrounding'!K37 -> 112.6500015 | H35: =IF(Feedlot!K53>Feedlot!K54,Feedlot!K40,Feedlot!K43) -> 135
A36: premium | C36: =Preconditioning!K38 -> 4 | D36: =Wheat!K44 -> 0 | E36: =Grass1!K43 -> 0 | F36: =Grass2!K43 -> 3 | G36: ='Drylot-Backgrounding'!K38 -> 4 | H36: =IF(Feedlot!K54>Feedlot!K53,SUM(Feedlot!K47:K51),0) -> 2.13
A37: death loss | C37: =Preconditioning!I5 -> 0.01 | D37: =Wheat!I5 -> 0.01 | E37: =Grass1!I5 -> 0.01 | F37: =Grass2!I5 -> 0.01 | G37: ='Drylot-Backgrounding'!I5 -> 0.01 | H37: =Feedlot!I5 -> 0.005
A38: presale expense | B38: =SUM(Wean!I8:I11) -> 11 | C38: =SUM(Preconditioning!K14:K23) -> 32.671875 | D38: =SUM(Wheat!K14:K29) -> 86.96875 | E38: =SUM(Grass1!K14:K28) -> 38.921875 | F38: =SUM(Grass2!K14:K28) -> 52.5 | G38: =SUM('Drylot-Backgrounding'!K14:K23) -> 46.98125 | H38: =SUM(Feedlot!K14:K26) -> 458.3
A39: gain | C39: =-C47+C43 -> 84.6 | D39: =-D47+D43 -> 139.00504 | E39: 61.479 | F39: 27.507 | G39: 63.0042 | H39: 478.75763
A40: cost of gain | C40: =Preconditioning!K48 -> 0.4473087744 | D40: =Wheat!K54 -> 0.5892213064 | E40: =Grass1!K53 -> 0.6845795642 | F40: =Grass2!K53 -> 1.135455895 | G40: ='Drylot-Backgrounding'!K48 -> 0.6848845874 | H40: =Feedlot!K38 -> 0.9600577144
A41: end date | B41: =Wean!E4 -> 2009-10-16 | C41: =Preconditioning!I8 -> 2009-11-30 | D41: =Wheat!I8 -> 2010-02-08 | E41: =Grass1!I8 -> 2010-01-14 | F41: =Grass2!I8 -> 2009-12-20 | G41: ='Drylot-Backgrounding'!I8 -> 2009-12-30 | H41: =Feedlot!I8 -> 2010-06-23
A42: transfer exp out | B42: =Wean!I28 -> 12 | C42: =Preconditioning!K47 -> 40.2577897 | D42: =Wheat!K53 -> 94.27540903 | E42: =Grass1!K52 -> 46.20912059 | F42: =Grass2!K52 -> 56.77279473 | G42: ='Drylot-Backgrounding'!K47 -> 51.36634405 | H42: =Feedlot!K55 -> 326.3175515
A43: transfer weight out | B43: =Wean!I30 -> 450 | C43: =Preconditioning!K44 -> 534.6 | D43: =Wheat!K50 -> 678.83704 | E43: =Grass1!K49 -> 596.079 | F43: =Grass2!K49 -> 539.832 | G43: ='Drylot-Backgrounding'!K44 -> 587.7942 | H43: =Feedlot!K32 -> 1074.83663
A44: transfer value out | B44: =Wean!I23 -> 497.7712 | C44: =Preconditioning!K40 -> 532.9139447 | D44: =Wheat!K46 -> 558.5768774 | E44: =Grass1!K45 -> 535.4262928 | F44: =Grass2!K45 -> 384.0162348 | G44: ='Drylot-Backgrounding'!K40 -> 613.5123948 | H44: =IF(Feedlot!K54>Feedlot!K53,Feedlot!K52,Feedlot!K41) -> 916.5961584
A45: end date in | C45: 2009-10-16 | D45: 2009-12-20 | E45: 2009-11-30 | F45: 2009-11-30 | G45: 2009-11-30 | H45: 2010-01-14
A46: transfer exp in | C46: 12 | D46: 16.2723 | E46: 40.2578 | F46: 72.9748 | G46: 50.79 | H46: 46.2091
A47: transfer weight in | C47: 450 | D47: 539.832 | E47: 534.6 | F47: 512.325 | G47: 524.79 | H47: 596.079
A48: transfer value in | C48: 497.7712 | D48: 338.6922 | E48: 532.9139 | F48: 459.6183 | G48: 516.7875 | H48: 535.4263
A49: total prior exp | C49: 12 | D49: 0 | E49: 52.2578 | F49: 0 | G49: 0 | H49: 98.4669 | I49: 0
A50: order | B50: 2 | C50: 3 | D50: 0 | E50: 4 | F50: 0 | G50: 0 | H50: 5

Sheet More info
B2: For more information on improving sale price of calves through preconditioning, see:
B3: Value of preconditioning
B4: and | C4: Cost and benefits of preconditioning
B6: How to participate in the OQBN vac-45 program and improving sale price of calves see:
B7: The economic benefits of OQBN participation
B8: and | C8: Information on participating in OQBN
B10: Improving value through age and source verification:
B11: Age and source verification
B13: Buyer preferences for calves:
B14: Preferences for calves | E14: and | F14: Calves
B16: Information on value-added in OK markets:
B17: OK value-added
B19: Value added opportunities for OK calf producers:
B20: Ok value-added opportunities
B22: Effects of preconditioning and price impact:
B23: Impacts of preconditioning
B25: For more information on beef production,
B26: see the OK Cooperative Extension Service factsheet library at: | H26: OSU factsheets
B27: see the Master Cattleman homepage at: | H27: Master Cattleman
B28: see the OSU Beef Extension homepage at: | H28: Beefextension.com
B29: find your local OK Cooperative Extension Service office: | H29: OCES
B31: This program is a product of the Oklahoma Cooperative Extension Service and Oklahoma Agricultural Experiment Station at Oklahoma State University, Stillwater.
E42: ←
